Workbook

Sheet Pg1
D1: Windows
B2: Annual Report Project | E2: First Name: | F2: Renee
B3: Lowe's Companies, Inc. - Fiscal 2015 | E3: Last Name: | F3: Bolduc
E4: ID Code: | F4: 61732179
F5: Bruce Wiggett | G5: Instructor
B6: Project is Activated | F6: Online | G6: Class Time
F8: 000333128 | G8: Seat# or Student ID#
B9: Save your project by following these directions - - - - - - - - - - - - - - - | E9: -
B12: Your Project Contains 16 Tabs -- Pg1 to Pg16
B15: Print Lowe's Financial Statements
B18: To print Lowe's financial statements, follow the directions below. After you print
B19: the financial statements, fill-in the three basic information questions on this page.
B21: This ARP is for Lowe's 2015 fiscal year which ended on January 29, 2016. Be sure to follow
B22: the directions below for printing the 2015 fiscal year financial statements.
B23: See your instructor if you have any questions concerning the fiscal year of the statements.
B25: Use Adobe Acrobat to open the file Lowe's 2015 Annual Report.pdf. This file is located
B26: in the Company Financial Statements folder that is under the Red Company 10e folder.
B29: Print the following from Lowe's Fiscal 2015 Annual Report:
B30: _ Report of Independent Registered Public Accounting Firm (PDF pg 1 / report pg 32)
B31: _ Consolidated Statements of Earnings (PDF pg 3 / report pg 34)
B32: _ Consolidated Balance Sheets (PDF pg 4 / report pg 35)
B33: _ Consolidated Statements of Shareholders' Equity (PDF pg 5 / report pg 36)
B34: _ Consolidated Statements of Cash Flows (PDF pg 6 / report pg 37)
B35: _ Notes to Consolidated Financial Statements
B36: (print the first page and the fifth page of the Notes located on PDF pgs 7 and 11 / report pgs 38 and 42)
B38: Be careful not to print out the entire annual report. Go to the correct page in the
B39: PDF document, select File, then Print, then Current Page.
B42: 1. Lowe's Fiscal 2015 year ended on what date?
C44: 2016-01-29
C45: (mm/dd/yyyy)
B47: 2. List the name of Lowe's Independent Registered Public Accounting Firm:
C49: DELOITTE & TOUCHE LLP
B51: 3. Revenue Recognition
B52: Record below when Lowe's recognizes revenue from the sale of merchandise. This can
B53: be found in Notes to Consolidated Financial Statements under "Revenue Recognition".
B55: As found in the Notes section of the Consolidated Financial Statements for "Revenue recogniition": The Company recognizes revenues, net of sales tax, when sales transactions occur and customers take possession of the merchandise." This occurs during the year accounting period, January 29, 2016, and January 30, 2015, respectively.
B60: As you work on your project, be sure to save your file often.

Sheet Pg2
B2: Lowe's -- Fiscal 2015 | J2: Pg. 2
B4: Vertical Analysis of the Income Statement (Common-Size Statements)
B7: Use the data from Lowe's Consolidated Statements of Earnings to fill in Fiscal 2015 below.
B8: Enter the amounts exactly as they are shown on the financial statement, which are in millions.
B12: Lowe's
B13: Consolidated Statements of Earnings
B14: (Dollars in Millions)
C16: Fiscal 2015 | F16: Fiscal 2014 | I16: Fiscal 2013
C17: ended January 29, 2016 | F17: ended January 30, 2015 | I17: ended January 31, 2014
C18: Dollars | D18: % | F18: Dollars | G18: % | I18: Dollars | J18: %
B21: Net Sales | C21: 59074 | D21: =IF($C$21 > 0,ROUND(($C21/$C$21),4), 0) -> 1 | F21: 56223 | G21: =IF($F$21 > 0,ROUND(($F21/$F$21),4), 0) -> 1 | I21: 53417 | J21: =IF($I$21 > 0,ROUND(($I21/$I$21),4), 0) -> 1
B22: Cost of Sales | C22: 38504 | D22: =IF($C$21 > 0,ROUND(($C22/$C$21),4), 0) -> 0.6518 | F22: 36665 | G22: =IF($F$21 > 0,ROUND(($F22/$F$21),4), 0) -> 0.6521 | I22: 34941 | J22: =IF($I$21 > 0,ROUND(($I22/$I$21),4), 0) -> 0.6541
B23: Gross Margin | C23: =C21-C22 -> 20570 | D23: =IF($C$21 > 0,ROUND(($C23/$C$21),4), 0) -> 0.3482 | F23: =F21-F22 -> 19558 | G23: =IF($F$21 > 0,ROUND(($F23/$F$21),4), 0) -> 0.3479 | I23: =I21-I22 -> 18476 | J23: =IF($I$21 > 0,ROUND(($I23/$I$21),4), 0) -> 0.3459
B25: Expenses:
B26: Selling, General and Admin. | C26: 14115 | D26: =IF($C$21 > 0,ROUND(($C26/$C$21),4), 0) -> 0.2389 | F26: 13281 | G26: =IF($F$21 > 0,ROUND(($F26/$F$21),4), 0) -> 0.2362 | I26: 12865 | J26: =IF($I$21 > 0,ROUND(($I26/$I$21),4), 0) -> 0.2408
B27: Depreciation | C27: 1484 | D27: =IF($C$21 > 0,ROUND(($C27/$C$21),4), 0) -> 0.0251 | F27: 1485 | G27: =IF($F$21 > 0,ROUND(($F27/$F$21),4), 0) -> 0.0264 | I27: 1462 | J27: =IF($I$21 > 0,ROUND(($I27/$I$21),4), 0) -> 0.0274
B28: Interest - net | C28: 552 | D28: =IF($C$21 > 0,ROUND(($C28/$C$21),4), 0) -> 0.0093 | F28: 516 | G28: =IF($F$21 > 0,ROUND(($F28/$F$21),4), 0) -> 0.0092 | I28: 476 | J28: =IF($I$21 > 0,ROUND(($I28/$I$21),4), 0) -> 0.0089
B29: Total Expenses | C29: =SUM(C26:C28) -> 16151 | D29: =IF($C$21 > 0,ROUND(($C29/$C$21),4), 0) -> 0.2734 | F29: =SUM(F26:F28) -> 15282 | G29: =IF($F$21 > 0,ROUND(($F29/$F$21),4), 0) -> 0.2718 | I29: =SUM(I26:I28) -> 14803 | J29: =IF($I$21 > 0,ROUND(($I29/$I$21),4), 0) -> 0.2771
B31: Pre-Tax Earnings | C31: =C23-C29 -> 4419 | D31: =IF($C$21 > 0,ROUND(($C31/$C$21),4), 0) -> 0.0748 | F31: =F23-F29 -> 4276 | G31: =IF($F$21 > 0,ROUND(($F31/$F$21),4), 0) -> 0.0761 | I31: =I23-I29 -> 3673 | J31: =IF($I$21 > 0,ROUND(($I31/$I$21),4), 0) -> 0.0688
B33: Income Tax Provision | C33: 1873 | D33: =IF($C$21 > 0,ROUND(($C33/$C$21),4), 0) -> 0.0317 | F33: 1578 | G33: =IF($F$21 > 0,ROUND(($F33/$F$21),4), 0) -> 0.0281 | I33: 1387 | J33: =IF($I$21 > 0,ROUND(($I33/$I$21),4), 0) -> 0.026
B36: Net Earnings | C36: =C31-C33 -> 2546 | D36: =IF($C$21 > 0,ROUND(($C36/$C$21),4), 0) -> 0.0431 | F36: =F31-F33 -> 2698 | G36: =IF($F$21 > 0,ROUND(($F36/$F$21),4), 0) -> 0.048 | I36: =I31-I33 -> 2286 | J36: =IF($I$21 > 0,ROUND(($I36/$I$21),4), 0) -> 0.0428
D37: ** | G37: ** | J37: **
B38: Basic Earnings per Common Share | C38: 2.73 | F38: 2.71 | I38: 2.14
B41: ** % columns may not add-up due to rounding

Sheet Pg3
B2: Lowe's -- Fiscal 2015 | M2: Pg. 3
B4: Horizontal Analysis of the Income Statement
B6: Enter the amounts for Fiscal 2015 for the following income statement items. Then calculate and enter the
B7: Dollar Change and the % Change from Fiscal 2014 to Fiscal 2015. Enter the dollar amounts just as they are
B8: shown on the financial statement. Round the percentages to 2 decimal places. xx.xx%
E11: Dollar Change | J11: Dollar Change
C12: Fiscal | E12: % Change | H12: Fiscal | J12: % Change | M12: Fiscal
C13: 2015 | E13: 2014 to 2015 | H13: 2014 | J13: 2013 to 2014 | M13: 2013
C14: $xxx,xxx | E14: $xxx,xxx
B15: Net Sales | C15: 59074 | E15: 2851 | H15: 56223 | J15: =H15-M15 -> 2806 | M15: 53417
E16: 5.07 | F16: % | J16: =ROUND((J15/M15)*100,2) -> 5.25 | K16: %
E17: xx.xx%
C18: $xxx,xxx | E18: $xxx,xxx
B19: Cost of Sales | C19: 38504 | E19: 1839 | H19: 36665 | J19: =H19-M19 -> 1724 | M19: 34941
E20: 5.01 | F20: % | J20: =ROUND((J19/M19)*100,2) -> 4.93 | K20: %
E21: xx.xx%
C22: $xxx,xxx | E22: $xxx,xxx
B23: Gross Margin | C23: 20570 | E23: 1012 | H23: 19558 | J23: =H23-M23 -> 1082 | M23: 18476
E24: 5.17 | F24: % | J24: =ROUND((J23/M23)*100,2) -> 5.86 | K24: %
E25: xx.xx%
C26: $xxx,xxx | E26: $xxx,xxx
B27: Selling, General and | C27: 14115 | E27: 834 | H27: 13281 | J27: =H27-M27 -> 416 | M27: 12865
B28: Administrative | E28: 6.28 | F28: % | J28: =ROUND((J27/M27)*100,2) -> 3.23 | K28: %
E29: xx.xx%
C31: $xxx,xxx | E31: $xxx,xxx
B32: Pre-Tax Earnings | C32: 4419 | E32: 143 | H32: 4276 | J32: =H32-M32 -> 603 | M32: 3673
E33: 3.34 | F33: % | J33: =ROUND((J32/M32)*100,2) -> 16.42 | K33: %
E34: xx.xx%
C35: $xxx,xxx | E35: $xxx,xxx
B36: Income Tax Provision | C36: 1873 | E36: 297 | H36: 1578 | J36: =H36-M36 -> 191 | M36: 1387
E37: 18.59 | F37: % | J37: =ROUND((J36/M36)*100,2) -> 13.77 | K37: %
E38: xx.xx%
C39: $xxx,xxx | E39: $xxx,xxx
B40: Net Earnings | C40: -11732 | E40: 9034 | H40: 2698 | J40: =H40-M40 -> 412 | M40: 2286
E41: 76.98 | F41: % | J41: =ROUND((J40/M40)*100,2) -> 18.02 | K41: %
E42: xx.xx%
C43: $xx.xx | E43: $xx.xx
B44: Basic Earnings Per Share | C44: 2.73 | E44: 0.02 | H44: 2.71 | J44: =H44-M44 -> 0.57 | M44: 2.14
E45: 0.74 | F45: % | J45: =ROUND((J44/M44)*100,2) -> 26.64 | K45: %
E46: xx.xx%

Sheet Pg4
B2: Lowe's -- Fiscal 2015 | I2: Pg. 4
B4: Vertical Analysis of the Balance Sheet (Common-Size Statements)
B7: Use the data from Lowe's Consolidated Balance Sheets to fill in Fiscal 2015 below.
B8: Enter the amounts exactly as they are shown on the financial statement, which are in millions.
B12: Lowe's
B13: Consolidated Balance Sheets
B14: (Dollars in Millions)
C15: Fiscal 2015 | F15: Fiscal 2014
C16: as of January 29, 2016 | F16: as of January 30, 2015
C17: Dollars | D17: % | F17: Dollars | G17: %
B18: Assets
B19: CURRENT ASSETS:
B20: Cash and Cash Equivalents | C20: 405 | D20: =IF($C$30 > 0,ROUND(($C20/$C$30),4), 0) -> 0.013 | F20: 466 | G20: =IF($F$30 > 0,ROUND(($F20/$F$30),4), 0) -> 0.0147
B21: Short-Term Investments | C21: 307 | D21: =IF($C$30 > 0,ROUND(($C21/$C$30),4), 0) -> 0.0098 | F21: 125 | G21: =IF($F$30 > 0,ROUND(($F21/$F$30),4), 0) -> 0.0039
B22: Merchandise Inventory - net | C22: 9458 | D22: =IF($C$30 > 0,ROUND(($C22/$C$30),4), 0) -> 0.3025 | F22: 8911 | G22: =IF($F$30 > 0,ROUND(($F22/$F$30),4), 0) -> 0.2809
B23: Other Current Assets | C23: 391 | D23: =IF($C$30 > 0,ROUND(($C23/$C$30),4), 0) -> 0.0125 | F23: 349 | G23: =IF($F$30 > 0,ROUND(($F23/$F$30),4), 0) -> 0.011
B25: Total Current Assets | C25: =SUM(C20:C23) -> 10561 | D25: =IF($C$30 > 0,ROUND(($C25/$C$30),4), 0) -> 0.3378 | F25: =SUM(F20:F23) -> 9851 | G25: =IF($F$30 > 0,ROUND(($F25/$F$30),4), 0) -> 0.3106
B26: Property, Less Accumulated Depreciation | C26: 19577 | D26: 0.6261 | F26: 20034 | G26: 0.6316
B27: Long-Term Investments | C27: 222 | D27: 0.0071 | F27: 354 | G27: 0.0112
B28: Deferred Income Taxes - net | C28: 241 | D28: 0.0077 | F28: 133 | G28: 0.0042
B29: Other Assets | C29: 665 | D29: 0.0213 | F29: 1349 | G29: 0.0425
B30: Total Assets | C30: =C25+SUM(C26:C29) -> 31266 | D30: 1 | F30: =F25+SUM(F26:F29) -> 31721 | G30: 1
B32: Liabilities and Shareholders' Equity
B33: CURRENT LIABILITIES:
B34: Short-term Borrowings | C34: 43 | D34: =IF($C$54 > 0,ROUND(($C34/$C$54),4), 0) -> 0.0014 | F34: 0 | G34: =IF($F$54 > 0,ROUND(($F34/$F$54),4), 0) -> 0
B35: Current Maturities of Long-Term Debt | C35: 1061 | D35: 0.0339 | F35: 552 | G35: 0.0174
B36: Accounts Payable | C36: 5633 | D36: 0.1802 | F36: 5124 | G36: 0.1615
B37: Accrued Compensation and Employee Benefits | C37: 820 | D37: 0.0262 | F37: 773 | G37: 0.0244
B38: Deferred Revenue | C38: 1078 | D38: 0.0345 | F38: 979 | G38: 0.0309
B39: Other Current Liabilities | C39: 1857 | D39: 0.0594 | F39: 1920 | G39: 0.0605
B41: Total Current Liabilities | C41: =SUM(C34:C39) -> 10492 | D41: =IF($C$54 > 0,ROUND(($C41/$C$54),4), 0) -> 0.3356 | F41: =SUM(F34:F39) -> 9348 | G41: =IF($F$54 > 0,ROUND(($F41/$F$54),4), 0) -> 0.2947
B42: Long-Term Debt, Excluding Current Maturities | C42: 11545 | D42: =IF($C$54 > 0,ROUND(($C42/$C$54),4), 0) -> 0.3693 | F42: 10806 | G42: =IF($F$54 > 0,ROUND(($F42/$F$54),4), 0) -> 0.3407
B43: Deferred Revenue - Extended Protection Plans | C43: 729 | D43: =IF($C$54 > 0,ROUND(($C43/$C$54),4), 0) -> 0.0233 | F43: 730 | G43: =IF($F$54 > 0,ROUND(($F43/$F$54),4), 0) -> 0.023
B44: Other Liabilities | C44: 846 | D44: =IF($C$54 > 0,ROUND(($C44/$C$54),4), 0) -> 0.0271 | F44: 869 | G44: =IF($F$54 > 0,ROUND(($F44/$F$54),4), 0) -> 0.0274
B45: Total Liabilities | C45: =C41+SUM(C42:C44) -> 23612 | D45: =IF($C$54 > 0,ROUND(($C45/$C$54),4), 0) -> 0.7552 | F45: =F41+SUM(F42:F44) -> 21753 | G45: =IF($F$54 > 0,ROUND(($F45/$F$54),4), 0) -> 0.6858
B47: SHAREHOLDERS' EQUITY
B48: Preferred Stock | C48: 0 | D48: =IF($C$54 > 0,ROUND(($C48/$C$54),4), 0) -> 0 | F48: 0 | G48: =IF($F$54 > 0,ROUND(($F48/$F$54),4), 0) -> 0
B49: Common Stock | C49: 455 | D49: 0.0146 | F49: 480 | G49: 0.0151
B50: Capital in Excess of Par Value | C50: 0 | D50: 0 | F50: 0 | G50: 0
B51: Retained Earnings | C51: 7593 | D51: 0.2429 | F51: 9591 | G51: 0.3024
B52: Accumulated Other Comprehensive Income | C52: -394 | D52: -0.0126 | F52: -103 | G52: -0.0032
B53: Total Shareholders' Equity | C53: =SUM(C48:C52) -> 7654 | D53: 0.2448 | F53: =SUM(F48:F52) -> 9968 | G53: 0.3142
B54: Total Liabilities and Shareholders' Equity | C54: =C45+C53 -> 31266 | D54: 1 | F54: =F45+F53 -> 31721 | G54: 1
D55: ** | G55: **
B57: ** % columns may not add-up due to rounding

Sheet Pg5
B2: Lowe's -- Fiscal 2015 | H2: Pg. 5
B4: Horizontal Analysis of the Balance Sheet
B6: For the following balance sheet items enter the amounts for Fiscal 2015, and then
B7: calculate the Dollar Change and the % Change from 2014 to 2015. Enter the 2015
B8: dollar amounts as shown on the financial statement, which are in millions.
B9: Round the percentages to 2 decimal places. xx.xx%
E12: Dollar Change
C13: Fiscal | E13: % Change | H13: Fiscal
C14: 2015 | E14: 2014 to 2015 | H14: 2014
C15: $xxx,xxx | E15: $xxx,xxx
B16: Merchandise Inventory - net | H16: 8911
F17: %
E18: xx.xx%
C19: $xxx,xxx | E19: $xxx,xxx
B20: Total Current Assets | H20: 9851
F21: %
E22: xx.xx%
C23: $xxx,xxx | E23: $xxx,xxx
B24: Property, Less Accumulated Depreciation | H24: 20034
F25: %
E26: xx.xx%
C27: $xxx,xxx | E27: $xxx,xxx
B28: Total Assets | H28: 31721
F29: %
E30: xx.xx%
C31: $xxx,xxx | E31: $xxx,xxx
B32: Current Maturities of Long-Term Debt | H32: 552
F33: %
E34: xx.xx%
C35: $xxx,xxx | E35: $xxx,xxx
B36: Total Current Liabilities | H36: 9348
F37: %
E38: xx.xx%
C39: $xxx,xxx | E39: $xxx,xxx
B40: Total Liabilities | H40: 21753
F41: %
E42: xx.xx%
C43: $xxx,xxx | E43: $xxx,xxx
B44: Retained Earnings | H44: 9591
F45: %
E46: xx.xx%
C47: $xxx,xxx | E47: $xxx,xxx
B48: Total Shareholders' Equity | H48: 9968
F49: %
E50: xx.xx%

Sheet Pg6
B2: Lowe's -- Fiscal 2015 | M2: Pg. 6
C4: DuPont Analysis -- Return on Assets
C7: Apply DuPont Analysis and the Return on Assets % to evaluate Lowe's overall financial performance.
C9: Use the information in Lowe's Income Statement and Balance Sheets for Fiscal 2015 and Fiscal 2014 to
C10: calculate the four DuPont Ratios and the Return on Assets %. In the left-hand column enter the names
C11: of the financial statement items that will be used in the numerator and the denominator of the ratios.
C12: Enter the financial statement dollar amounts just as they are shown on the financial statements.
C13: Round all averages to 0 decimal places -- a whole number $xxx,xxx
C14: Round the percentages to 2 decimal places. xx.xx%
C15: Round the decimal results to 2 decimal places. xx.xx
C17: Note: Since each ratio is being rounded, it is possible that Return on Equity %
C18: will not exactly equal (Profitability x Efficiency x Leverage).
C19: Calculate each ratio separately. Do not calculate Return on
C20: Equity % by multiplying (Profitability x Efficiency x Leverage).
C22: DuPont Analysis
C24: (Profitability) | E24: 2015 | M24: 2014
C25: Net Profit Margin %
I26: $xxx,xxx
C27: Net Earnings | J27: xx.xx%
K28: % | M28: 4.8 | N28: %
I30: $xxx,xxx | J30: x | M30: x
C31: (Efficiency)
C32: Total Assets Turnover Ratio
I33: $xxx,xxx
J34: xx.xx
E35: Beg. Yr. Amt. | G35: End. Yr. Amt. | I35: Average | K35: times | M35: 1.74
E37: $xxx,xxx | G37: $xxx,xxx | I37: $xxx,xxx | J37: x | M37: x
C38: (Leverage)
C39: Assets-to-Equity Ratio
I40: $xxx,xxx
J41: xx.xx
E42: Beg. Yr. Amt. | G42: End. Yr. Amt. | I42: Average | K42: to 1 | M42: 2.95
E44: $xxx,xxx | G44: $xxx,xxx | I44: $xxx,xxx | J44: = | M44: =
C46: Return on Equity %
I47: $xxx,xxx
K49: % | M49: 24.73 | N49: %
J50: xx.xx%
I51: $xxx,xxx
C55: Return on Assets
E56: 2015 | M56: 2014
C57: Return on Assets %
I58: $xxx,xxx
J59: xx.xx%
K60: % | M60: 8.37 | N60: %
I62: $xxx,xxx

Sheet Pg7
B2: Lowe's -- Fiscal 2015 | J2: Pg. 7
C4: Profitability Indicators
C7: Apply the three Profitability Indicators to evaluate Lowe's profitability.
C9: Use the information in Lowe's Fiscal 2015 Income Statement to calculate the
C10: three Profitability Indicators. In the left-hand column enter the names of the
C11: items that will be used in the numerator and the denominator of the ratios.
C12: Enter the financial statement dollar amounts just as they are shown on the
C13: financial statements.
C14: Round the percentages to 2 decimal places. xx.xx%
E20: 2015 | J20: 2014
C21: Gross Profit Margin %
F22: $xxx,xxx
H24: % | J24: 34.79 | K24: %
G25: xx.xx%
F26: $xxx,xxx
C28: Operating Profit Margin %
F29: $xxx,xxx
H31: % | J31: 8.52 | K31: %
G32: xx.xx%
F33: $xxx,xxx
C35: Net Profit Margin %
F36: $xxx,xxx
H38: % | J38: 4.8 | K38: %
G39: xx.xx%
F40: $xxx,xxx

Sheet Pg8
B2: Lowe's -- Fiscal 2015 | M2: Pg. 8
C4: Efficiency Indicators
C7: Apply the Efficiency Indicators to drill down into Lowe's efficiency.
C9: Use the information in Lowe's Income Statement and Balance Sheets for Fiscal 2015 and Fiscal 2014 to
C10: calculate the Efficiency Indicators. In the left-hand column enter the names of the financial
C11: statement items that will be used in the numerator and the denominator of the ratios.
C12: Enter the financial statement dollar amounts just as they are shown on the financial statements.
C13: Round all averages to 0 decimal places -- a whole number $xxx,xxx
C14: Round the decimal results to 2 decimal places. xx.xx
E17: 2015 | M17: 2014
C18: Accounts Receivable Turnover Ratio
I19: $xxx,xxx
C20: Net Sales | I20: 59074
E21: Beg. Yr. Amt. | G21: End. Yr. Amt. | I21: Average | J21: N/A | K21: times | M21: N/A
C22: Average Accounts Receivable, net | E22: 0 | G22: 0 | I22: 0 | J22: xx.xx
E23: $xxx,xxx | G23: $xxx,xxx | I23: $xxx,xxx
C25: Number of Days' Sales in Receivables
I26: xxx
C27: Days in a Year (365) | I27: 365
J28: 0 | K28: days | M28: 0
C29: Accounts Receivable Turnover Ratio | I29: N/A | J29: xx.xx
I30: xx.xx
C33: Inventory Turnover Ratio
I34: $xxx,xxx
E36: Beg. Yr. Amt. | G36: End. Yr. Amt. | I36: Average | K36: times | M36: 4.07
J37: xx.xx
E38: $xxx,xxx | G38: $xxx,xxx | I38: $xxx,xxx
C40: Number of Days' Sales in Inventory
I41: xxx
C42: Days in a Year (365)
K43: days | M43: 89.68
C44: Inventory Turnover Ratio | J44: xx.xx
I45: xx.xx
C48: Accounts Payable Turnover Ratio
I49: $xxx,xxx
E51: Beg. Yr. Amt. | G51: End. Yr. Amt. | I51: Average | K51: times | M51: 7.24
J52: xx.xx
E53: $xxx,xxx | G53: $xxx,xxx | I53: $xxx,xxx
C54: Number of Days'
C55: Purchases in Accounts Payable
I56: xxx
C57: Days in a Year (365)
K58: days | M58: 50.41
C59: Accounts Payable Turnover Ratio | J59: xx.xx
I60: xx.xx
E63: Cash-to-Cash Cycle
J64: xx.xx
D65: Number of Days' Sales in Inventory | M65: =M43 -> 89.68
D66: less Number of Days' Purchases in Accounts Payable | M66: =-M58 -> -50.41
D67: Net Number of Days Cash is Invested in Inventory | M67: =SUM(M65:M66) -> 39.27
D68: plus Number of Days' Sales in Receivables | J68: 0 | M68: =M28 -> 0
D69: Cash-to-Cash Days | M69: =SUM(M67:M68) -> 39.27
E72: 2015 | M72: 2014
C73: Fixed Asset Turnover Ratio
I74: $xxx,xxx
E76: Beg. Yr. Amt. | G76: End. Yr. Amt. | I76: Average | K76: times | M76: 2.75
J77: xx.xx
E78: $xxx,xxx | G78: $xxx,xxx | I78: $xxx,xxx

Sheet Pg9
B2: Lowe's -- Fiscal 2015 | J2: Pg. 9
C4: Leverage Indicators (at year-end) -- Interest Coverage
C6: Use the information in Lowe's 2015 Balance Sheet and Income Statement to calculate
C7: the two "year-end" Leverage Indicators and the Times Interest Earned Ratio. In the
C8: left-hand column enter the names of the items that will be used in the numerator
C9: and the denominator of the ratios.
C10: Enter the financial statement dollar amounts just as they are shown on the
C11: financial statements.
C12: Round the percentages to 2 decimal places. xx.xx%
C13: Round the decimal results to 2 decimal places. xx.xx
E17: 2015 | J17: 2014
C18: Debt %
F19: $xxx,xxx
H21: % | J21: 68.58 | K21: %
G22: xx.xx%
F23: $xxx,xxx
C25: Debt-to-Equity Ratio
F26: $xxx,xxx
H28: to 1 | J28: 2.18
G29: xx.xx
F30: $xxx,xxx
C34: Times Interest Earned Ratio
F35: $xxx,xxx
C36: Pre-tax earnings + Interest-net
H37: times | J37: 9.29
C38: Interest-net | G38: xx.xx
F39: $xxx,xxx

Sheet Pg10
B2: Lowe's -- Fiscal 2015 | J2: Pg. 10
C4: Liquidity Indicators
C6: Use the information in Lowe's 2015 Balance Sheet to calculate the three Liquidity
C7: Indicators. In the left-hand column enter the names of the items that will be
C8: used in the calculation.
C10: Enter the financial statement dollar amounts just as they are shown on the
C11: Balance Sheet.
C13: Round the decimal results to 2 decimal places. xx.xx
E17: 2015 | J17: 2014
C18: Working Capital
F19: $xxx,xxx
C22: Working Capital | J22: 503
C25: Current Ratio
F26: $xxx,xxx
H28: to 1 | J28: 1.05
G29: xx.xx
F30: $xxx,xxx
C31: (Acid Test Ratio)
C32: Quick Ratio
F33: $xxx,xxx
C34: Cash and Near-Cash Assets
H35: to 1 | J35: 0.06
G36: xx.xx
F37: $xxx,xxx

Sheet Pg11
B2: Lowe's -- Fiscal 2015 | J2: Pg. 11
C4: Statement of Cash Flows Indicators
C6: Use the information in Lowe's 2015 Consolidated Statement of Cash Flows to calculate
C7: the three Statement of Cash Flows Indicators. In the left-hand column enter the names
C8: of the items that will be used in the calculation.
C10: Enter the financial statement dollar amounts in millions of dollars as shown on the
C11: Consolidated Statement of Cash Flows.
C13: Round the decimal results to 2 decimal places. xx.xx
C17: (Quality of Income Ratio) | E17: 2015 | J17: 2014
C18: Cash Flow to Net Income Ratio
F19: $xxx,xxx
H21: to 1 | J21: 1.83
G22: xx.xx
F23: $xxx,xxx
C24: (Cash Flow Adequacy Ratio)
C25: Cash Flow to Capital Expenditures Ratio
F26: $xxx,xxx
H28: to 1 | J28: 5.95
C29: Net Cash Paid to Purchase PP&E | G29: xx.xx
F30: $xxx,xxx
C32: Free Cash Flow
F33: $xxx,xxx
C35: Net Cash Paid to Purchase PP&E
C37: Free Cash Flow | J37: 3279

Sheet Pg12
B2: Lowe's -- Fiscal 2015 | J2: Pg. 12
C4: Equity Investor Indicators
C6: Use the information in Lowe's Consolidated Statements of Shareholders' Equity
C7: to calculate Lowe's Dividend Payout %.
C8: Use the information at the bottom of Lowe's Consolidated Statements of Earnings and
C9: Lowe's Year-End Closing Market Price of 1 Common Share to calculate Lowe's
C10: Price-Earnings Ratio and Dividend Yield %.
C11: Enter the financial statement dollar amounts just as they are shown on the
C12: financial statements.
C13: Round the percentages to 2 decimal places. xx.xx%
C14: Round the decimal results to 2 decimal places. xx.xx
E17: 2015 | J17: 2014
C18: Dividend Payout %
F19: $xxx,xxx
H21: % | J21: 31.8 | K21: %
G22: xx.xx%
F23: $xxx,xxx
C27: Year-End Closing Market
C28: Price of 1 Common Share
C30: The Year-End Closing Market Price of 1 share of Lowe's Common Stock is not given in
C31: Lowe's annual report. The Year-End Closing Market Price is used in the two calculations
C32: below. The last day in Lowe's 2015 fiscal year was Friday, Jan. 29, 2016. Lowe's
C33: common stock trades on the New York Stock Exchange (NYSE). On the NYSE,
C34: Lowe's year-end closing market price on Friday, Jan. 29, 2016 was $71.66.
C35: Enter that price in the box below.
C37: 2015 Year-End Closing Market Price of 1 Common Share:
G38: $xx.xx
C41: (PE Ratio) | E41: 2015 | J41: 2014
C42: Price-Earnings Ratio
F44: $xx.xx
H46: times | J46: 25
C47: Basic earnings per common share | G47: xx.xx
F48: $xx.xx
C51: Dividend Yield %
F52: $xx.xx
C53: Cash dividends per share
H54: % | J54: 1.28 | K54: %
G55: xx.xx%
F56: $xx.xx

Sheet Pg13
B2: Lowe's -- Fiscal 2015 | P2: Pg. 13
B4: Analytical Observations
B7: You will now utilize the information developed in Pages 2 to 12 to answer various analytical questions.
B11: 1. Vertical Analysis of the Income Statement (Pg. 2)
B13: 1> Which fiscal year had the highest Pre-Tax Earnings in terms of total dollars?
F15: [ "x" only one answer ] | J15: 2015 | L15: 2014 | N15: 2013
B17: 2> Which fiscal year had the highest Total Expenses as a % of Net Sales?
F19: [ "x" only one answer ] | J19: 2015 | L19: 2014 | N19: 2013
B21: 3> Based on Gross Margin as a % of Net Sales, rank the fiscal years 2015, 2014, and 2013 in terms
B22: of which year had the highest.
B23: Place a "1" in the box of the highest year, a "2" in the box of the second highest year, etc.
I25: 2015 | K25: 2014 | M25: 2013
B28: 4> Which fiscal year had the highest Net Earnings as a % of Net Sales?
F30: [ "x" only one answer ] | J30: 2015 | L30: 2014 | N30: 2013
B34: 2. Horizontal Analysis of the Income Statement (Pg. 3)
B36: 1> Rank the following items in terms of which had the largest % increase from Fiscal 2013 to
B37: Fiscal 2014. Place a "1" in the box of the largest, a "2" in the box of the second largest, etc.
J38: Selling, General and
B39: Net Sales | F39: Cost of Sales | J39: Administrative | N39: Basic Earnings Per Share
B42: 2> Rank the following items in terms of which had the largest % increase from Fiscal 2014 to
B43: Fiscal 2015. Place a "1" in the box of the largest, a "2" in the box of the second largest, etc.
J44: Selling, General and
B45: Net Sales | F45: Cost of Sales | I45: Administrative | N45: Basic Earnings Per Share
B48: 3> True or False? In terms of % Change, Basic Earnings Per Share grew more than Net Earnings
B49: from Fiscal 2013 to Fiscal 2014.
F51: [ "x" only one answer ] | J51: True | L51: False
B53: 4> True or False? In terms of % Change, from Fiscal 2014 to Fiscal 2015 Selling, General and Administrative
B54: increased more than Net Sales.
F56: [ "x" only one answer ] | J56: True | L56: False
B58: 5> True or False? In terms of % Change, Cost of Sales had a smaller increase than
B59: Net Sales from Fiscal 2014 to Fiscal 2015.
F60: [ "x" only one answer ] | J60: True | L60: False

Sheet Pg14
B2: Lowe's -- Fiscal 2015 | P2: Pg. 14
B4: Analytical Observations
B6: 3. Vertical Analysis of the Balance Sheet (Pg.4)
B8: 1> For fiscal year 2015, rank the following assets in terms of which was the largest as a % of
B9: Total Assets. Place a "1" in the box of the largest, a "2" in the box of the second largest, etc.
B11: Cash and Cash Equivalents | F11: Short-Term Investments | J11: Merchandise Inventory - net | N11: Property, Less Accum. Depr.
B14: 2> For fiscal year 2015, rank the following items in terms of which was the largest as a
B15: % of Total Liabilities and Shareholders' Equity. Place a "1" in the box of the largest,
B16: a "2" in the box of the second largest, etc.
F18: Long-Term Debt,
B19: Accounts Payable | F19: Excluding Current Maturities | J19: Common Stock | N19: Retained Earnings
B24: 4. Horizontal Analysis of the Balance Sheet (Pg. 5)
B26: 1> Rank the following items in terms of which had the largest % increase from Fiscal 2014 to
B27: Fiscal 2015. Place a "1" in the box of the largest, a "2" in the box of the second largest, etc.
J29: Current Maturities
B30: Merchandise Inventory - Net | F30: Total Current Assets | J30: of Long-Term Debt | N30: Total Liabilities
B33: 2> Rank the following items in terms of which had the largest Dollar increase from Fiscal 2014 to
B34: Fiscal 2015. Place a "1" in the box of the largest, a "2" in the box of the second largest, etc.
J36: Current Maturities
B37: Merchandise Inventory - Net | F37: Total Current Assets | J37: of Long-Term Debt | N37: Total Liabilities
B42: 5. DuPont Analysis -- Return on Assets Ratio (Pg. 6)
B44: 1> Which of the following increased from Fiscal 2014 to Fiscal 2015? ["x" each item that increased]
F47: Profitability | J47: Efficiency | N47: Leverage
B49: 2> Which fiscal year has the highest Return on Assets %?
F51: [ "x" only one answer ] | J51: 2015 | N51: 2014
B53: 3> Which fiscal year has the highest Return on Equity%?
F55: [ "x" only one answer ] | J55: 2015 | N55: 2014
B59: 6. Profitability Indicators (Pg. 7)
B61: 1> Which fiscal year, 2015 or 2014, had higher profitability based on Operating Profit Margin %
B62: and Net Profit Margin %?
F64: [ "x" only one answer ] | J64: 2015 | N64: 2014

Sheet Pg15
B2: Lowe's -- Fiscal 2015 | P2: Pg. 15
B4: Analytical Observations
B6: 7. Efficiency Indicators (Pg.8)
B8: 1> Based on the Inventory Turnover Ratio, in which fiscal year, 2015 or 2014, did Lowe's
B9: more efficiently manage the Inventory asset?
F11: [ "x" only one answer ] | J11: 2015 | L11: 2014
B13: 2> Based on Number of Days' Sales in Inventory, in which fiscal year, 2015 or 2014,
B14: did Lowe's have an item in inventory for the shortest amount of time?
F16: [ "x" only one answer ] | J16: 2015 | L16: 2014
B18: 3> Based on the Number of Days' Purchases in Accounts Payable, in which fiscal year, 2015 or 2014,
B19: did Lowe's hold on to its cash longer before paying the cash to vendors?
F21: [ "x" only one answer ] | J21: 2015 | L21: 2014
B23: 4> Which fiscal year, 2015 or 2014, had the better Cash-to-Cash Cycle?
F26: [ "x" only one answer ] | J26: 2015 | L26: 2014
B28: 5> In which fiscal year, 2015 or 2014, did Lowe's have the better Fixed Asset Turnover Ratio?
F31: [ "x" only one answer ] | J31: 2015 | L31: 2014
B35: 8. Leverage Indicators (at year-end) -- Interest Coverage (Pg. 9)
B37: 1> Based on the Debt %, who had the greatest claim to Lowe's assets in Fiscal 2014?
F40: [ "x" only one answer ] | J40: Creditors | N40: Shareholders
B42: 2> True or False? In Fiscal 2015 more than half of Lowe's Total Assets were financed with debt?
F45: [ "x" only one answer ] | J45: True | L45: False
B47: 3> Based on the Times Interest Earned Ratio, were the creditors' interest payments more secure in
B48: Fiscal 2015 or Fiscal 2014?
F50: [ "x" only one answer ] | J50: 2015 | L50: 2014
B54: 9. Liquidity Indicators (Pg. 10)
B56: 1> Based on Working Capital and the Current Ratio did Liquidity increase or decrease from
B57: Fiscal 2014 to Fiscal 2015?
F59: [ "x" only one answer ] | J59: Liquidity Increased | N59: Liquidity Decreased

Sheet Pg16
B2: Lowe's -- Fiscal 2015 | P2: Pg. 16
B4: Analytical Observations
B6: 10. Statement of Cash Flows Indicators (Pg. 11)
B8: 1> True or False? By looking at the Cash Flow to Capital Expenditure Ratio it can be seen that Lowe's was
B9: able to internally fund the purchases of Fixed Assets in Fiscal 2015 and in Fiscal 2014.
F12: [ "x" only one answer ] | J12: True | L12: False
B14: 2> In which fiscal year, 2015 or 2014, did Lowe's have more Free Cash Flow?
F17: [ "x" only one answer ] | J17: 2015 | L17: 2014
B21: 11. Equity Investor Indicators (Pg. 12)
B23: 1> True or False? Based on the Dividend Payout % it can be seen that Lowe's paid out a larger percent
B24: of Net Income, in the form of Cash Dividends, in Fiscal 2015 than in Fiscal 2014.
F27: [ "x" only one answer ] | J27: True | L27: False
B29: 2> Based on the Price-Earnings Ratio, in which fiscal year, 2015 or 2014, did investors place a
B30: higher value on Lowe's earnings?
F33: [ "x" only one answer ] | J33: 2015 | L33: 2014
B35: 3> Based on the Dividend Yield %, in which fiscal year, 2015 or 2014, did an investor in Lowe's Common Stock
B36: earn a higher return from the cash dividends she received on her Lowe's Common Stock?
F39: [ "x" only one answer ] | J39: 2015 | L39: 2014

Sheet Values (hidden)
A1: InfoPct | D1: 42863.91763
A2: 10e | D2: 42868.00616
A3: =ROUND(VALUE(MID('Pg1'!$C$10,1,1)), 0) ->  | D3: 42868.0083
A4: =ROUND(VALUE(MID('Pg1'!$C$10,2,1)), 0) ->  | D4: 42868.07747
A5: =ROUND(VALUE(MID('Pg1'!$C$10,3,1)), 0) -> 
A6: =ROUND(VALUE(MID('Pg1'!$C$10,4,1)), 0) -> 
A7: =ROUND(VALUE(MID('Pg1'!$C$10,5,1)), 0) -> 
A8: =ROUND(VALUE(MID('Pg1'!$C$10,6,1)), 0) -> 
A9: =ROUND(VALUE(MID('Pg1'!$C$10,7,1)), 0) -> 
A10: =ROUND(VALUE(MID('Pg1'!$C$10,8,1)), 0) -> 
A11: =ROUND(VALUE(MID('Pg1'!$C$10,2,6)), 0) -> 
A12: =ROUND(((A4+A6+A8)*3) + (A5+A7+A9), 0) -> 
A13: =RIGHT( TEXT(A12,"0"), 1) -> 
A14: =ROUND(VALUE(A13), 0) -> 
A17: Year and Version: | B17: 20154
